fUSD/lending_fUSD_20241219
["ID","MTS","AMOUNT","RATE_DAILY","PERIOD"]
[345969821,1734575449280,-1136.48,0.0002356,4]
[345969822,1734575449290,-500.0,0.0002356,4]
[345969823,1734575449299,-1358.02,0.0002356,4]
[345969824,1734575449310,-500.0,0.0002356,4]
[345969825,1734575449320,-4447.15,0.0002356,4]
[345969826,1734575449332,-647.12,0.0002356,4]
[345969827,1734575449342,-1392.93,0.0002356,4]
[345969828,1734575449351,-1156.66,0.0002356,4]
[345969829,1734575449360,-556.94,0.0002356,4]
[345969830,1734575449372,-500.0,0.0002356,4]
[345969831,1734575449382,-500.0,0.0002356,4]
[345969832,1734575449392,-635.22,0.0002356,4]
[345969833,1734575449403,-1952.75,0.0002356,4]
[345969834,1734575449413,-500.0,0.0002356,4]
[345969835,1734575449423,-1097.97,0.0002356,4]
[345969836,1734575449438,-500.0,0.0002356,4]
[345969837,1734575449448,-1671.99,0.0002356,4]
[345969838,1734575449458,-500.0,0.0002356,4]
[345969839,1734575449468,-1176.91,0.0002356,4]
[345969840,1734575449479,-500.0,0.0002356,4]
[345969841,1734575449488,-500.0,0.0002356,4]
[345969842,1734575449499,-3037.83,0.0002356,4]
[345969843,1734575449510,-560.72,0.0002356,2]
[345969844,1734575449520,-588.32,0.0002356,4]
[345969845,1734575449531,-796.04,0.0002356,4]
[345969846,1734575449540,-500.0,0.0002356,4]
[345969847,1734575449551,-500.0,0.0002356,4]
[345969848,1734575449561,-500.0,0.0002356,4]
[345969849,1734575449573,-1572.13,0.0002356,4]
[345969850,1734575449583,-500.0,0.0002356,4]
[345969851,1734575449593,-500.0,0.0002356,4]
[345969852,1734575449604,-500.0,0.0002356,4]
[345969853,1734575449621,-500.0,0.0002356,4]
[345969854,1734575449637,-1000.0,0.0002356,4]
[345969855,1734575449647,-500.0,0.0002356,4]
[345969856,1734575449658,-500.0,0.0002356,4]
[345969857,1734575449668,-982.58,0.0002356,4]
[345969858,1734575449678,-500.0,0.0002356,4]
[345969859,1734575449689,-553.51,0.0002356,4]
[345969860,1734575449700,-500.0,0.0002356,4]
[345969861,1734575449711,-540.82,0.0002356,4]
[345969862,1734575449721,-777.94,0.0002356,4]
[345969863,1734575449732,-500.0,0.0002356,4]
[345969864,1734575449742,-1766.66,0.0002356,4]
[345969865,1734575449753,-500.0,0.0002356,4]
[345969866,1734575449763,-900.42,0.0002356,4]
[345969867,1734575449774,-659.6,0.0002356,4]
[345969868,1734575449786,-771.09,0.0002356,4]
[345969869,1734575449796,-500.0,0.00023561,4]
[345969870,1734575449807,-277.54259541,0.00023561,4]
[345969871,1734575449817,-500.0,0.00023561,4]
[345969872,1734575449831,-500.0,0.00023561,4]
[345969873,1734575449841,-295.62475848,0.00023561,4]
[345969874,1734575449851,-500.0,0.00023561,4]
[345969875,1734575449862,-1223.41,0.00023561,4]
[345969876,1734575449872,-1146.16,0.00023561,4]
[345969877,1734575449882,-500.0,0.00023561,4]
[345969878,1734575449893,-500.0,0.00023561,4]
[345969879,1734575449903,-500.0,0.00023561,4]
[345969880,1734575449913,-500.0,0.00023561,4]
[345969881,1734575449923,-500.0,0.00023561,4]
[345969882,1734575449934,-633.35,0.00023561,4]
[345969883,1734575449944,-500.0,0.00023561,4]
[345969884,1734575449955,-614.51,0.00023561,4]
[345969885,1734575449967,-500.0,0.00023561,4]
[345969886,1734575449978,-793.7,0.00023561,4]
[345969887,1734575449989,-500.0,0.00023561,4]
[345969888,1734575449999,-939.73,0.00023561,4]
[345969889,1734575450011,-500.0,0.00023561,4]
[345969890,1734575450021,-619.82,0.00023561,4]
[345969891,1734575450031,-500.0,0.00023561,4]
[345969892,1734575450042,-500.0,0.00023561,4]
[345969893,1734575450053,-1000.0,0.00023561,5]
[345969894,1734575450063,-500.0,0.00023561,4]
[345969895,1734575450075,-500.0,0.00023561,4]
[345969896,1734575450085,-500.0,0.00023561,4]
[345969897,1734575450095,-500.0,0.00023561,4]
[345969898,1734575450106,-500.0,0.00023561,4]
[345969899,1734575450117,-541.26,0.00023561,4]
[345969900,1734575450127,-500.0,0.00023561,4]
[345969901,1734575450138,-198.29851605,0.00023561,4]
[345969902,1734575450148,-500.0,0.00023561,4]
[345969903,1734575450158,-830.13,0.00023561,4]
[345969904,1734575450168,-500.0,0.00023561,4]
[345969905,1734575450178,-900.65,0.00023561,4]
[345969906,1734575450189,-500.0,0.00023561,4]
[345969907,1734575450198,-500.0,0.00023561,4]
[345969908,1734575450209,-1732.59424916,0.0002362,2]
[345969909,1734575450220,-250.13123006,0.00023652,2]
[345969910,1734575450230,-799.26,0.00023661,2]
[345969911,1734575450241,-609.65640879,0.00023667,2]
[345969912,1734575450252,-553.99750551,0.0002368,2]
[345969913,1734575450262,-500.0,0.00023689,7]
[345969914,1734575450272,-732.853,0.00023735,2]
[345969915,1734575450282,-150.0,0.00023737,4]
[345969916,1734575450292,-150.0,0.00023737,4]
[345969917,1734575450301,-150.0,0.00023737,4]
[345969918,1734575450312,-1123.03,0.0002375,2]
[345969919,1734575450326,-393.402,0.0002375,2]
[345969920,1734575450336,-1732.59424916,0.0002376,2]
[345969921,1734575450346,-500.0,0.00023833,4]
[345969922,1734575450356,-500.0,0.00023833,4]
[345969923,1734575450366,-500.0,0.00023833,4]
[345969924,1734575450376,-670.5,0.00023833,4]
[345969925,1734575450387,-1234.71,0.00023833,4]
[345969926,1734575450397,-500.0,0.00023833,4]
[345969927,1734575450408,-646.15,0.00023833,4]
[345969928,1734575450419,-534.78,0.00023833,4]
[345969929,1734575450430,-500.0,0.00023833,4]
[345969930,1734575450443,-500.0,0.00023833,4]
[345969931,1734575450454,-500.0,0.00023833,4]
[345969932,1734575450464,-1617.63,0.00023833,4]
[345969933,1734575450474,-648.52976895,0.00023833,4]
[345969934,1734575450486,-500.0,0.00023833,4]
[345969935,1734575450496,-500.0,0.00023833,4]
[345969936,1734575450505,-500.0,0.00023833,4]
[345969937,1734575450515,-453.42343817,0.00023833,4]
[345969938,1734575450525,-879.76,0.00023833,4]
[345969939,1734575450534,-525.61,0.00023833,4]
[345969940,1734575450544,-500.0,0.00023834,4]
[345969941,1734575450554,-500.0,0.00023834,4]
[345969942,1734575450563,-500.0,0.00023834,4]
[345969943,1734575450577,-500.0,0.00023834,4]
[345969944,1734575450587,-500.0,0.00023834,4]
[345969945,1734575450596,-420.62125999,0.00023834,4]
[345969946,1734575450607,-499.11956728,0.00023834,4]
[345969947,1734575450616,-1185.63,0.00023834,4]
[345969948,1734575450626,-500.0,0.00023834,4]
[345969949,1734575450636,-500.0,0.00023834,4]
[345969950,1734575450646,-500.0,0.00023834,4]
[345969951,1734575450657,-500.0,0.00023834,4]
[345969952,1734575450667,-500.0,0.00023834,4]
[345969953,1734575450677,-512.90488194,0.00023834,4]
[345969954,1734575450687,-1014.42,0.00023834,4]
[345969955,1734575450697,-500.0,0.00023834,4]
[345969956,1734575450707,-500.0,0.00023834,4]
[345969957,1734575450718,-500.0,0.00023834,4]
[345969958,1734575450727,-510.76,0.00023834,4]
[345969959,1734575450737,-506.28,0.00023834,4]
[345969960,1734575450747,-500.0,0.00023834,4]
[345969961,1734575450757,-500.0,0.00023834,4]
[345969962,1734575450767,-500.0,0.00023834,4]
[345969963,1734575450777,-683.69,0.00023834,4]
[345969964,1734575450787,-500.0,0.00023834,4]
[345969965,1734575450796,-650.27,0.00023834,4]
[345969966,1734575450806,-500.0,0.00023834,4]
[345969967,1734575450817,-1260.38,0.00023834,4]
[345969968,1734575450831,-500.0,0.00023834,4]
[345969969,1734575450842,-500.0,0.00023834,4]
[345969970,1734575450855,-500.0,0.00023834,4]
[345969971,1734575450866,-500.0,0.00023834,4]
[345969972,1734575450877,-500.0,0.00023834,4]
[345969973,1734575450888,-500.0,0.00023834,4]
[345969974,1734575450899,-500.0,0.00023834,4]
[345969975,1734575450909,-633.11,0.00023834,4]
[345969976,1734575450920,-500.0,0.00023834,4]
[345969977,1734575450930,-500.0,0.00023834,4]
[345969978,1734575450940,-500.0,0.00023834,4]
[345969979,1734575450950,-659.75,0.00023834,4]
[345969980,1734575450960,-500.0,0.00023834,4]
[345969981,1734575450970,-500.0,0.00023834,4]
[345969982,1734575450979,-500.0,0.00023834,4]
[345969983,1734575450990,-844.34,0.00023834,4]
[345969984,1734575451000,-500.0,0.00023834,4]
[345969985,1734575451011,-794.86,0.00023834,4]
[345969986,1734575451021,-500.0,0.00023834,4]
[345969987,1734575451031,-500.0,0.00023834,4]
[345969988,1734575451041,-500.0,0.00023834,4]
[345969989,1734575451051,-500.0,0.00023834,4]
[345969990,1734575451061,-666.98,0.00023834,4]
[345969991,1734575451071,-983.5,0.00023834,4]
[345969992,1734575451083,-500.0,0.00023834,4]
[345969993,1734575451093,-500.0,0.00023834,4]
[345969994,1734575451103,-171.74093097,0.00023834,4]
[345969995,1734575451113,-997.27,0.00023834,4]
[345969996,1734575451123,-578.02,0.00023834,4]
[345969997,1734575451133,-500.0,0.00023834,4]
[345969998,1734575451142,-500.0,0.00023834,4]
[345969999,1734575451152,-606.81,0.00023834,4]
[345970000,1734575451162,-500.0,0.00023834,4]
[345970001,1734575451172,-500.0,0.00023834,4]
[345970002,1734575451181,-1048.28,0.00023834,4]
[345970003,1734575451192,-500.0,0.00023834,4]
[345970004,1734575451201,-739.19,0.00023834,4]
[345970005,1734575451211,-257.7715776,0.00023834,4]
[345970006,1734575451221,-1109.91,0.00023834,4]
[345970007,1734575451231,-500.0,0.00023834,4]
[345970008,1734575451241,-500.0,0.00023834,4]
[345970009,1734575451251,-517.88,0.00023834,4]
[345970010,1734575451261,-537.74,0.00023834,4]
[345970011,1734575451271,-908.27,0.00023834,4]
[345970012,1734575451281,-688.73,0.00023834,4]
[345970013,1734575451293,-515.37,0.00023834,4]
[345970014,1734575451303,-747.99,0.00023834,4]
[345970015,1734575451314,-1205.93,0.00023834,4]
[345970016,1734575451327,-346.32394549,0.00023834,4]
[345970017,1734575451337,-1343.12,0.00023834,4]
[345970018,1734575451347,-711.86,0.00023834,4]
[345970019,1734575451357,-1205.98,0.00023834,4]
[345970020,1734575451367,-601.69,0.00023834,7]
[345970021,1734575451376,-844.19,0.00023834,4]
[345970022,1734575451387,-2377.26,0.00023834,4]
[345970023,1734575451397,-500.0,0.00023834,4]
[345970024,1734575451407,-500.0,0.00023834,4]
[345970025,1734575451417,-546.98,0.00023834,4]
[345970026,1734575451427,-638.66,0.00023834,4]
[345970027,1734575451439,-601.44,0.00023834,4]
[345970028,1734575451451,-639.29,0.00023834,4]
[345970029,1734575451461,-500.0,0.00023834,4]
[345970030,1734575451471,-500.0,0.00023834,4]
[345970031,1734575451483,-674.56,0.00023834,4]
[345970032,1734575451493,-502.06,0.00023834,4]
[345970033,1734575451503,-592.56,0.00023834,4]
[345970034,1734575451513,-500.0,0.00023834,4]
[345970035,1734575451524,-500.0,0.00023834,4]
[345970036,1734575451534,-549.06,0.00023834,4]
[345970037,1734575451544,-500.0,0.00023834,4]
[345970038,1734575451554,-500.0,0.00023834,4]
[345970039,1734575451564,-1298.92,0.00023834,4]
[345970040,1734575451580,-500.0,0.00023834,4]
[345970041,1734575451590,-745.87,0.00023834,4]
[345970042,1734575451600,-567.54,0.00023834,4]
[345970043,1734575451609,-706.14,0.00023834,4]
[345970044,1734575451619,-500.0,0.00023834,4]
[345970045,1734575451629,-500.0,0.00023834,4]
[345970046,1734575451639,-1136.48,0.00023834,4]
[345970047,1734575451650,-500.0,0.00023834,4]
[345970048,1734575451661,-1358.02,0.00023834,4]
[345970049,1734575451671,-500.0,0.00023834,4]
[345970050,1734575451681,-4447.15,0.00023834,4]
[345970051,1734575451691,-647.12,0.00023834,4]
[345970052,1734575451701,-1392.93,0.00023834,4]
[345970053,1734575451712,-1156.66,0.00023834,4]
[345970054,1734575451722,-556.94,0.00023834,4]
[345970055,1734575451732,-500.0,0.00023834,4]
[345970056,1734575451742,-208.13762435,0.00023834,4]
[345970057,1734575451752,-635.22,0.00023834,4]
[345970058,1734575451762,-1952.75,0.00023834,4]
[345970059,1734575451772,-500.0,0.00023834,4]
[345970060,1734575451783,-1097.97,0.00023834,4]
[345970061,1734575451793,-500.0,0.00023834,4]
[345970062,1734575451803,-1671.99,0.00023834,4]
[345970063,1734575451813,-500.0,0.00023834,4]
[345970064,1734575451826,-1176.91,0.00023834,4]
[345970065,1734575451837,-500.0,0.00023834,4]
[345970066,1734575451848,-500.0,0.00023834,4]
[345970067,1734575451858,-3037.83,0.00023834,4]
[345970068,1734575451869,-560.72,0.00023834,2]
[345970069,1734575451879,-588.32,0.00023834,4]
[345970070,1734575451890,-796.04,0.00023834,4]
[345970071,1734575451900,-500.0,0.00023834,4]
[345970072,1734575451910,-500.0,0.00023834,4]
[345970073,1734575451921,-500.0,0.00023834,4]
[345970074,1734575451932,-1572.13,0.00023834,4]
[345970075,1734575451943,-500.0,0.00023834,4]
[345970076,1734575452143,-500.0,0.00023834,4]
[345970077,1734575452154,-500.0,0.00023834,4]
[345970078,1734575452163,-500.0,0.00023834,4]
[345970079,1734575452173,-1000.0,0.00023834,4]
[345970080,1734575452183,-500.0,0.00023834,4]
[345970081,1734575452192,-500.0,0.00023834,4]
[345970082,1734575452202,-982.58,0.00023834,4]
[345970083,1734575452211,-500.0,0.00023834,4]
[345970084,1734575452221,-553.51,0.00023834,4]
[345970085,1734575452230,-500.0,0.00023834,4]
[345970086,1734575452240,-540.82,0.00023834,4]
[345970087,1734575452249,-777.94,0.00023834,4]
[345970088,1734575452259,-1766.66,0.00023834,4]
[345970089,1734575452269,-500.0,0.00023834,4]
[345970090,1734575452279,-500.0,0.00023834,4]
[345970091,1734575452288,-900.42,0.00023834,4]
[345970092,1734575452298,-659.6,0.00023834,4]
[345970093,1734575452307,-771.09,0.00023834,4]
[345970094,1734575452317,-500.0,0.00023835,4]
[345970095,1734575452330,-500.0,0.00023835,4]
[345970096,1734575452339,-500.0,0.00023835,4]
[345970097,1734575452348,-500.0,0.00023835,4]
[345970098,1734575452359,-1223.41,0.00023835,4]
[345970099,1734575452369,-1146.16,0.00023835,4]
[345970100,1734575452379,-500.0,0.00023835,4]
[345970101,1734575452388,-500.0,0.00023835,4]
[345970102,1734575452398,-500.0,0.00023835,4]
[345970103,1734575452407,-500.0,0.00023835,4]
[345970104,1734575452417,-500.0,0.00023835,4]
[345970105,1734575452427,-633.35,0.00023835,4]
[345970106,1734575452437,-500.0,0.00023835,4]
[345970107,1734575452450,-614.51,0.00023835,4]
[345970108,1734575452459,-500.0,0.00023835,4]
[345970109,1734575452468,-793.7,0.00023835,4]
[345970110,1734575452479,-500.0,0.00023835,4]
[345970111,1734575452489,-939.73,0.00023835,4]
[345970112,1734575452498,-500.0,0.00023835,4]
[345970113,1734575452508,-619.82,0.00023835,4]
[345970114,1734575452519,-500.0,0.00023835,4]
[345970115,1734575452528,-500.0,0.00023835,4]
[345970116,1734575452537,-970.54010748,0.00023835,5]
[345970117,1734575452546,-500.0,0.00023835,4]
[345970118,1734575452556,-500.0,0.00023835,4]
[345970119,1734575452566,-500.0,0.00023835,4]
[345970120,1734575452578,-500.0,0.00023835,4]
[345970121,1734575452587,-541.26,0.00023835,4]
[345970122,1734575452596,-500.0,0.00023835,4]
[345970123,1734575452606,-500.0,0.00023835,4]
[345970124,1734575452615,-830.13,0.00023835,4]
[345970125,1734575452625,-500.0,0.00023835,4]
[345970126,1734575452635,-900.65,0.00023835,4]
[345970127,1734575452645,-500.0,0.00023835,4]
[345970128,1734575452655,-500.0,0.00023835,4]
[345970129,1734575452664,-216.63437335,0.00023836,2]
[345970130,1734575452674,-199.77538201,0.00023836,2]
[345970131,1734575452683,-337.02860742,0.00023844,5]
[345970132,1734575452693,-337.02860742,0.00023852,5]
[345970133,1734575452703,-337.02860742,0.00023859,5]
[345970134,1734575452713,-337.02860742,0.00023882,5]
[345970135,1734575452723,-583.71,0.00023882,2]
[345970136,1734575452734,-358.94,0.00023889,2]
[345970137,1734575452744,-337.02860742,0.00023892,5]
[345970138,1734575452754,-337.02860742,0.00023897,5]
[345970139,1734575452764,-220.0,0.00023898,2]
[345970140,1734575452773,-553.99750551,0.00023899,2]
[345970141,1734575452783,-653.01403679,0.000239,2]
[345970142,1734575452793,-1732.59424916,0.000239,2]
[345970143,1734575452803,-209.48478231,0.000239,4]
[345970144,1734575452814,-500.0,0.00023962,7]
[345970145,1734575452826,-250.13123006,0.00023964,2]
[345970146,1734575452836,-4473.7974,0.00023981,2]
[345970147,1734575452846,-500.0,0.00023981,2]
[345970148,1734575452855,-5829.0734,0.00023981,2]
[345970149,1734575452865,-438.8809245,0.00023989,2]
[345970150,1734575452875,-500.0,0.00023989,2]
[345970151,1734575452885,-500.0,0.00023989,2]
[345970152,1734575452895,-500.0,0.00023989,2]
[345970153,1734575452906,-500.0,0.00023989,2]
[345970154,1734575452916,-500.0,0.00023989,2]
[345970155,1734575452927,-500.0,0.00023989,2]
[345970156,1734575452937,-500.0,0.00023989,2]
[345970157,1734575452946,-500.0,0.00023989,2]
[345970158,1734575452956,-352.13309886,0.00023989,2]
[345970159,1734575452966,-500.0,0.00023989,2]
[345970160,1734575452977,-500.0,0.00023989,2]
[345970161,1734575452986,-500.0,0.00023989,2]
[345970162,1734575452996,-500.0,0.00023989,2]
[345970163,1734575453005,-500.0,0.00023989,2]
[345970164,1734575453015,-500.0,0.00023989,2]
[345970165,1734575453025,-500.0,0.00023989,2]
[345970166,1734575453034,-500.0,0.00023989,2]
[345970167,1734575453044,-500.0,0.00023989,2]
[345970168,1734575453053,-186.79220721,0.00023989,2]
[345970169,1734575453063,-500.0,0.00023989,2]
[345970170,1734575453075,-500.0,0.00023989,2]
[345970171,1734575453085,-500.0,0.00023989,2]
[345970172,1734575453095,-500.0,0.00023989,2]
[345970173,1734575453104,-500.0,0.00023989,2]
[345970174,1734575453114,-500.0,0.00023989,2]
[345970175,1734575453124,-500.0,0.00023989,2]
[345970176,1734575453134,-500.0,0.00023989,2]
[345970177,1734575453144,-500.0,0.00023989,2]
[345970178,1734575453154,-500.0,0.00023989,2]
[345970179,1734575453164,-500.0,0.00023989,2]
[345970180,1734575453174,-500.0,0.00023989,2]
[345970181,1734575453185,-264882.82995891,0.0002399,5]
[345970182,1734575453194,-2584.33933603,0.00024,2]
[345970183,1734575453204,-14603.81850085,0.00024,10]
[345970184,1734575453213,-1205.40707661,0.00024,2]
[345970185,1734575453223,-225564.0,0.00024,2]
[345970186,1734575453233,-3612.1424278,0.00024,25]
[345970187,1734575453243,-5117424.46615081,0.00024,5]
[345970188,1734575453253,-43065.00554594,0.00024,5]
[345970189,1734575453262,-2034.21323301,0.00024,2]
[345970190,1734575453272,-4672.69215791,0.00024,2]
[345970191,1734575453281,-172.847417,0.00024009,2]
[345970192,1734575453290,-547.36,0.00024036,2]
[345970193,1734575453300,-2506.93,0.00024043,2]
[345970194,1734575453310,-640.33,0.00024055,2]
[345970195,1734575453319,-502.41271363,0.00024081,4]
[345970196,1734575453335,-511.8421308,0.00024081,4]
[345970197,1734575453345,-500.0,0.00024081,4]
[345970198,1734575453355,-500.0,0.00024081,4]
[345970199,1734575453366,-1011.01910182,0.00024081,4]
[345970200,1734575453376,-500.0,0.00024081,4]
[345970201,1734575453385,-500.0,0.00024081,4]
[345970202,1734575453395,-500.0,0.00024081,4]
[345970203,1734575453405,-500.0,0.00024081,4]
[345970204,1734575453415,-500.0,0.00024081,4]
[345970205,1734575453424,-500.0,0.00024081,4]
[345970206,1734575453435,-500.0,0.00024081,4]
[345970207,1734575453446,-500.0,0.00024081,4]
[345970208,1734575453456,-500.0,0.00024081,4]
[345970209,1734575453466,-500.0,0.00024081,4]
[345970210,1734575453479,-500.0,0.00024081,4]
[345970211,1734575453489,-500.0,0.00024081,4]
[345970212,1734575453499,-500.0,0.00024081,4]
[345970213,1734575453509,-513.05378256,0.00024081,4]
[345970214,1734575453519,-500.0,0.00024081,4]
[345970215,1734575453528,-500.0,0.00024081,4]
[345970216,1734575453538,-538.06,0.00024081,4]
[345970217,1734575453547,-500.0,0.00024081,4]
[345970218,1734575453557,-500.0,0.00024081,4]
[345970219,1734575453567,-720.89,0.00024081,4]
[345970220,1734575453581,-500.0,0.00024081,4]
[345970221,1734575453591,-500.0,0.00024107,4]
[345970222,1734575453600,-500.0,0.00024107,4]
[345970223,1734575453609,-500.0,0.00024107,4]
[345970224,1734575453619,-670.5,0.00024107,4]
[345970225,1734575453628,-1234.71,0.00024107,4]
[345970226,1734575453637,-500.0,0.00024107,4]
[345970227,1734575453647,-646.15,0.00024107,4]
[345970228,1734575453656,-534.78,0.00024107,4]
[345970229,1734575453666,-500.0,0.00024107,4]
[345970230,1734575453675,-500.0,0.00024107,4]
[345970231,1734575453685,-500.0,0.00024107,4]
[345970232,1734575453695,-1617.63,0.00024107,4]
[345970233,1734575453705,-500.0,0.00024107,4]
[345970234,1734575453714,-500.0,0.00024107,4]
[345970235,1734575453724,-500.0,0.00024107,4]
[345970236,1734575453733,-879.76,0.00024107,4]
[345970237,1734575453744,-525.61,0.00024107,4]
[345970238,1734575453762,-500.0,0.00024108,4]
[345970239,1734575453772,-500.0,0.00024108,4]
[345970240,1734575453782,-500.0,0.00024108,4]
[345970241,1734575453791,-514.13253723,0.00024108,4]
[345970242,1734575453801,-500.0,0.00024108,4]
[345970243,1734575453810,-1185.63,0.00024108,4]
[345970244,1734575453820,-194.61967796,0.00024108,4]
[345970245,1734575453833,-500.0,0.00024108,4]
[345970246,1734575453842,-500.0,0.00024108,4]
[345970247,1734575453852,-500.0,0.00024108,4]
[345970248,1734575453861,-500.0,0.00024108,4]
[345970249,1734575453871,-1014.42,0.00024108,4]
[345970250,1734575453881,-500.0,0.00024108,4]
[345970251,1734575453890,-500.0,0.00024108,4]
[345970252,1734575453900,-500.0,0.00024108,4]
[345970253,1734575453909,-510.76,0.00024108,4]
[345970254,1734575453919,-506.28,0.00024108,4]
[345970255,1734575453928,-500.0,0.00024108,4]
[345970256,1734575453938,-500.0,0.00024108,4]
[345970257,1734575453948,-500.0,0.00024108,4]
[345970258,1734575453957,-683.69,0.00024108,4]
[345970259,1734575453967,-500.0,0.00024108,4]
[345970260,1734575453977,-650.27,0.00024108,4]
[345970261,1734575453987,-500.0,0.00024108,4]
[345970262,1734575453997,-1260.38,0.00024108,4]
[345970263,1734575454006,-500.0,0.00024108,4]
[345970264,1734575454016,-500.0,0.00024108,4]
[345970265,1734575454025,-500.0,0.00024108,4]
[345970266,1734575454035,-500.0,0.00024108,4]
[345970267,1734575454044,-500.0,0.00024108,4]
[345970268,1734575454053,-500.0,0.00024108,4]
[345970269,1734575454063,-500.0,0.00024108,4]
[345970270,1734575454076,-633.11,0.00024108,4]
[345970271,1734575454086,-500.0,0.00024108,4]
[345970272,1734575454095,-500.0,0.00024108,4]
[345970273,1734575454104,-500.0,0.00024108,4]
[345970274,1734575454114,-659.75,0.00024108,4]
[345970275,1734575454123,-500.0,0.00024108,4]
[345970276,1734575454132,-500.0,0.00024108,4]
[345970277,1734575454142,-500.0,0.00024108,4]
[345970278,1734575454153,-844.34,0.00024108,4]
[345970279,1734575454163,-629.96510723,0.00024108,4]
[345970280,1734575454173,-794.86,0.00024108,4]
[345970281,1734575454182,-500.0,0.00024108,4]
[345970282,1734575454192,-500.0,0.00024108,4]
[345970283,1734575454201,-500.0,0.00024108,4]
[345970284,1734575454210,-500.0,0.00024108,4]
[345970285,1734575454219,-666.98,0.00024108,4]
[345970286,1734575454229,-983.5,0.00024108,4]
[345970287,1734575454238,-500.0,0.00024108,4]
[345970288,1734575454247,-500.0,0.00024108,4]
[345970289,1734575454256,-997.27,0.00024108,4]
[345970290,1734575454265,-578.02,0.00024108,4]
[345970291,1734575454275,-500.0,0.00024108,4]
[345970292,1734575454285,-500.0,0.00024108,4]
[345970293,1734575454295,-606.81,0.00024108,4]
[345970294,1734575454305,-500.0,0.00024108,4]
[345970295,1734575454314,-500.0,0.00024108,4]
[345970296,1734575454327,-1048.28,0.00024108,4]
[345970297,1734575454336,-500.0,0.00024108,4]
[345970298,1734575454345,-739.19,0.00024108,4]
[345970299,1734575454355,-1109.91,0.00024108,4]
[345970300,1734575454364,-160.74553517,0.00024108,4]
[345970301,1734575454374,-500.0,0.00024108,4]
[345970302,1734575454384,-517.88,0.00024108,4]
[345970303,1734575454394,-537.74,0.00024108,4]
[345970304,1734575454404,-908.27,0.00024108,4]
[345970305,1734575454413,-688.73,0.00024108,4]
[345970306,1734575454422,-515.37,0.00024108,4]
[345970307,1734575454433,-747.99,0.00024108,4]
[345970308,1734575454444,-1205.93,0.00024108,4]
[345970309,1734575454453,-1343.12,0.00024108,4]
[345970310,1734575454463,-711.86,0.00024108,4]
[345970311,1734575454516,-601.69,0.00024108,7]
[345970312,1734575454526,-1205.98,0.00024108,4]
[345970313,1734575454537,-844.19,0.00024108,4]
[345970314,1734575454546,-2377.26,0.00024108,4]
[345970315,1734575454556,-500.0,0.00024108,4]
[345970316,1734575454565,-500.0,0.00024108,4]
[345970317,1734575454578,-546.98,0.00024108,4]
[345970318,1734575454587,-638.66,0.00024108,4]
[345970319,1734575454596,-601.44,0.00024108,4]
[345970320,1734575454606,-639.29,0.00024108,4]